[Event "Late-Titled-Tuesday-Blitz-March-26-2024"]
[Site "Chess.com"]
[Date "2024.03.26"]
[Round "10"]
[White "campochess"]
[Black "Viktor_Poddubnyi"]
[Result "1-0"]
[WhiteElo "2191"]
[BlackElo "2283"]
[TimeControl "180+1"]
[EndTime "15:53:26 PDT"]
[Termination "campochess won on time"]

1. e4 {[%clk 0:02:55.7]} 1... g6 {[%clk 0:03:00.4]} 2. d4 {[%clk 0:02:54.5]}
2... Bg7 {[%clk 0:03:00.9]} 3. Nf3 {[%clk 0:02:53.8]} 3... d6 {[%clk 0:03:01.2]}
4. h3 {[%clk 0:02:53.2]} 4... Nf6 {[%clk 0:03:00.5]} 5. Bd3 {[%clk 0:02:50.8]}
5... Nc6 {[%clk 0:02:58.9]} 6. c3 {[%clk 0:02:50.3]} 6... e5 {[%clk 0:02:58]} 7.
d5 {[%clk 0:02:45.5]} 7... Ne7 {[%clk 0:02:57.5]} 8. c4 {[%clk 0:02:44.6]} 8...
O-O {[%clk 0:02:56.6]} 9. Nc3 {[%clk 0:02:44.6]} 9... Nh5 {[%clk 0:02:56]} 10.
g4 {[%clk 0:02:39.9]} 10... Nf4 {[%clk 0:02:55.3]} 11. Bxf4 {[%clk 0:02:39.9]}
11... exf4 {[%clk 0:02:56.2]} 12. Qd2 {[%clk 0:02:35.6]} 12... c6 {[%clk
0:02:52]} 13. Qxf4 {[%clk 0:02:29.2]} 13... Qb6 {[%clk 0:02:37.2]} 14. Qd2
{[%clk 0:02:27.1]} 14... h6 {[%clk 0:02:21.8]} 15. O-O {[%clk 0:02:26.4]} 15...
g5 {[%clk 0:02:15.2]} 16. Rab1 {[%clk 0:02:16.5]} 16... Ng6 {[%clk 0:02:09.4]}
17. b4 {[%clk 0:02:11.3]} 17... Nf4 {[%clk 0:01:58.4]} 18. Kh2 {[%clk
0:02:10.4]} 18... Bxc3 {[%clk 0:00:57.2]} 19. Qxc3 {[%clk 0:02:07]} 19... Qd8
{[%clk 0:00:49.2]} 20. Rbd1 {[%clk 0:01:58.1]} 20... Qe7 {[%clk 0:00:42.5]} 21.
Rfe1 {[%clk 0:01:54.7]} 21... f6 {[%clk 0:00:37.5]} 22. c5 {[%clk 0:01:49.3]}
22... Bd7 {[%clk 0:00:33.5]} 23. cxd6 {[%clk 0:01:47.1]} 23... Qxd6 {[%clk
0:00:29.8]} 24. e5 {[%clk 0:01:39]} 24... fxe5 {[%clk 0:00:21.8]} 25. Qxe5
{[%clk 0:01:38.6]} 25... Qxe5 {[%clk 0:00:16]} 26. Nxe5 {[%clk 0:01:37.9]} 26...
Be8 {[%clk 0:00:08.1]} 27. d6 {[%clk 0:01:36.5]} 27... Rd8 {[%clk 0:00:08]} 28.
Bc4+ {[%clk 0:01:35.8]} 28... Kg7 {[%clk 0:00:08.3]} 29. d7 {[%clk 0:01:32.3]}
29... Bg6 {[%clk 0:00:08.5]} 30. Rd6 {[%clk 0:01:29.3]} 30... Bh7 {[%clk
0:00:05.6]} 31. Nf3 {[%clk 0:01:16.6]} 31... Nxh3 {[%clk 0:00:03.6]} 32. Re7+
{[%clk 0:01:15.9]} 32... Kh8 {[%clk 0:00:02.8]} 33. Rxh6 {[%clk 0:01:11.8]} 1-0

[Event "Late-Titled-Tuesday-Blitz-March-26-2024"]
[Site "Chess.com"]
[Date "2024.03.26"]
[Round "10"]
[White "TanitoluwaAps116"]
[Black "Oleg_Papayan"]
[Result "0-1"]
[WhiteElo "2813"]
[BlackElo "2669"]
[TimeControl "180+1"]
[EndTime "15:53:28 PDT"]
[Termination "Oleg_Papayan won by resignation"]

1. e4 {[%clk 0:03:00.9]} 1... d5 {[%clk 0:02:58.9]} 2. exd5 {[%clk 0:03:01.1]}
2... Qxd5 {[%clk 0:02:59.8]} 3. Nc3 {[%clk 0:03:01.6]} 3... Qd8 {[%clk
0:03:00.2]} 4. d4 {[%clk 0:03:00.5]} 4... c6 {[%clk 0:03:00.7]} 5. Nf3 {[%clk
0:03:00.6]} 5... Bf5 {[%clk 0:03:01.2]} 6. Bc4 {[%clk 0:02:56.8]} 6... e6 {[%clk
0:03:01.6]} 7. Ne5 {[%clk 0:02:50.7]} 7... Nd7 {[%clk 0:03:01.4]} 8. Bf4 {[%clk
0:02:22]} 8... Nxe5 {[%clk 0:02:50.8]} 9. Bxe5 {[%clk 0:02:22.9]} 9... Nf6
{[%clk 0:02:50.9]} 10. O-O {[%clk 0:02:20.8]} 10... Be7 {[%clk 0:02:50]} 11. Qe2
{[%clk 0:02:17.3]} 11... O-O {[%clk 0:02:49.7]} 12. Rad1 {[%clk 0:02:14]} 12...
a5 {[%clk 0:02:48.9]} 13. a3 {[%clk 0:02:09.7]} 13... Bg6 {[%clk 0:02:34]} 14.
Rfe1 {[%clk 0:02:02.6]} 14... b5 {[%clk 0:02:33.7]} 15. Bd3 {[%clk 0:02:00.8]}
15... b4 {[%clk 0:02:34.3]} 16. axb4 {[%clk 0:01:53.4]} 16... axb4 {[%clk
0:02:33.1]} 17. Ne4 {[%clk 0:01:49.6]} 17... Nxe4 {[%clk 0:02:30.3]} 18. Bxe4
{[%clk 0:01:50.5]} 18... Ra2 {[%clk 0:02:20.6]} 19. Qc4 {[%clk 0:01:14.3]} 19...
Rxb2 {[%clk 0:01:48.5]} 20. Bxg6 {[%clk 0:01:07.2]} 20... hxg6 {[%clk
0:01:45.3]} 21. Qxc6 {[%clk 0:01:04.7]} 21... Qc8 {[%clk 0:01:37.1]} 22. Qxc8
{[%clk 0:00:32.3]} 22... Rxc8 {[%clk 0:01:37.1]} 23. d5 {[%clk 0:00:31.3]} 23...
Rbxc2 {[%clk 0:01:32.4]} 24. d6 {[%clk 0:00:29.9]} 24... Bf6 {[%clk 0:01:25.4]}
25. d7 {[%clk 0:00:28.1]} 25... Rd8 {[%clk 0:01:25.3]} 26. Bf4 {[%clk
0:00:24.4]} 26... b3 {[%clk 0:01:21.9]} 27. Re4 {[%clk 0:00:14.8]} 27... b2
{[%clk 0:01:04.4]} 28. g3 {[%clk 0:00:14.7]} 28... g5 {[%clk 0:01:00.9]} 29. Be3
{[%clk 0:00:13.8]} 29... Rc7 {[%clk 0:00:58.8]} 30. Rb4 {[%clk 0:00:05.5]} 30...
Rcxd7 {[%clk 0:00:57.9]} 31. Rxd7 {[%clk 0:00:04.1]} 31... Rxd7 {[%clk
0:00:58.8]} 32. Kg2 {[%clk 0:00:02.3]} 32... Rd1 {[%clk 0:00:58.5]} 0-1

[Event "Late-Titled-Tuesday-Blitz-March-26-2024"]
[Site "Chess.com"]
[Date "2024.03.26"]
[Round "10"]
[White "dolynachess"]
[Black "Kosak12"]
[Result "0-1"]
[WhiteElo "2511"]
[BlackElo "2747"]
[TimeControl "180+1"]
[EndTime "15:53:36 PDT"]
[Termination "Kosak12 won on time"]

1. d4 {[%clk 0:03:00.9]} 1... g6 {[%clk 0:02:56.7]} 2. c4 {[%clk 0:02:58.2]}
2... Bg7 {[%clk 0:02:56.7]} 3. Nc3 {[%clk 0:02:57.9]} 3... c5 {[%clk 0:02:57.1]}
4. d5 {[%clk 0:02:56.3]} 4... Bxc3+ {[%clk 0:02:57.7]} 5. bxc3 {[%clk
0:02:57.1]} 5... f5 {[%clk 0:02:58.1]} 6. h4 {[%clk 0:02:57.7]} 6... Nf6 {[%clk
0:02:58.1]} 7. h5 {[%clk 0:02:56.3]} 7... Kf7 {[%clk 0:02:58.5]} 8. Nh3 {[%clk
0:02:29.6]} 8... Nxh5 {[%clk 0:02:27.1]} 9. Ng5+ {[%clk 0:02:28.8]} 9... Kg7
{[%clk 0:02:27.4]} 10. e4 {[%clk 0:02:13.8]} 10... h6 {[%clk 0:02:15.1]} 11.
Rxh5 {[%clk 0:01:33.8]} 11... gxh5 {[%clk 0:02:14]} 12. Nh3 {[%clk 0:01:24.1]}
12... d6 {[%clk 0:01:44.4]} 13. Nf4 {[%clk 0:01:14.9]} 13... Qf8 {[%clk
0:01:34.8]} 14. Qxh5 {[%clk 0:00:51.5]} 14... Qf6 {[%clk 0:01:34.4]} 15. Rb1
{[%clk 0:00:43.2]} 15... fxe4 {[%clk 0:01:15.8]} 16. Qe2 {[%clk 0:00:15.5]}
16... Qe5 {[%clk 0:01:00]} 17. g3 {[%clk 0:00:09.3]} 17... h5 {[%clk 0:00:59.1]}
18. Bh3 {[%clk 0:00:05.8]} 18... Bxh3 {[%clk 0:00:55.2]} 19. Nxh3 {[%clk
0:00:06.7]} 19... Nd7 {[%clk 0:00:55.6]} 20. Rxb7 {[%clk 0:00:05.9]} 20... Qxc3+
{[%clk 0:00:50.1]} 21. Kd1 {[%clk 0:00:05.2]} 21... Ne5 {[%clk 0:00:34.8]} 22.
Rxe7+ {[%clk 0:00:01.8]} 22... Kf8 {[%clk 0:00:35.5]} 23. Re6 {[%clk 0:00:01.9]}
23... Nd3 {[%clk 0:00:32.3]} 0-1

[Event "Late-Titled-Tuesday-Blitz-March-26-2024"]
[Site "Chess.com"]
[Date "2024.03.26"]
[Round "10"]
[White "Janh4"]
[Black "elcala"]
[Result "1-0"]
[WhiteElo "2161"]
[BlackElo "1794"]
[TimeControl "180+1"]
[EndTime "15:53:37 PDT"]
[Termination "Janh4 won on time"]

1. d4 {[%clk 0:03:00.9]} 1... Nf6 {[%clk 0:02:58.7]} 2. Nc3 {[%clk 0:03:00.5]}
2... c5 {[%clk 0:02:58.2]} 3. d5 {[%clk 0:02:56.6]} 3... e6 {[%clk 0:02:54.9]}
4. dxe6 {[%clk 0:02:56.2]} 4... fxe6 {[%clk 0:02:54.4]} 5. Bg5 {[%clk
0:02:56.7]} 5... d5 {[%clk 0:02:52.4]} 6. e3 {[%clk 0:02:56.2]} 6... h6 {[%clk
0:02:51.3]} 7. Bh4 {[%clk 0:02:52.4]} 7... Bd6 {[%clk 0:02:45.1]} 8. Bd3 {[%clk
0:02:38.9]} 8... O-O {[%clk 0:02:03.3]} 9. Nf3 {[%clk 0:02:37.3]} 9... Nc6
{[%clk 0:01:48.9]} 10. O-O {[%clk 0:02:33.6]} 10... Qc7 {[%clk 0:01:43.4]} 11.
Nb5 {[%clk 0:02:30.7]} 11... Qd7 {[%clk 0:01:42.2]} 12. Nxd6 {[%clk 0:02:29.2]}
12... Qxd6 {[%clk 0:01:43.1]} 13. c4 {[%clk 0:02:21.4]} 13... Ne5 {[%clk
0:01:29.9]} 14. Nxe5 {[%clk 0:02:07.9]} 14... Qxe5 {[%clk 0:01:28.6]} 15. b3
{[%clk 0:02:05.5]} 15... Bd7 {[%clk 0:01:16.2]} 16. Rc1 {[%clk 0:02:02.8]} 16...
b6 {[%clk 0:01:13.7]} 17. Bg3 {[%clk 0:01:48.8]} 17... Qg5 {[%clk 0:00:55.3]}
18. Qc2 {[%clk 0:01:38.3]} 18... Bc6 {[%clk 0:00:46.4]} 19. h4 {[%clk
0:01:24.9]} 19... Qg4 {[%clk 0:00:26.9]} 20. Be2 {[%clk 0:01:22.2]} 20... Qf5
{[%clk 0:00:17.3]} 21. Qxf5 {[%clk 0:01:17.7]} 21... exf5 {[%clk 0:00:18.2]} 22.
Be5 {[%clk 0:01:11.3]} 22... Nd7 {[%clk 0:00:10.6]} 23. Bb2 {[%clk 0:01:08]}
23... dxc4 {[%clk 0:00:06.4]} 24. Bxc4+ {[%clk 0:01:07.3]} 24... Kh7 {[%clk
0:00:06.3]} 25. Rcd1 {[%clk 0:01:04.2]} 25... Rad8 {[%clk 0:00:05.1]} 26. Rd6
{[%clk 0:01:03.5]} 26... Bb7 {[%clk 0:00:03.2]} 27. Rfd1 {[%clk 0:00:56.7]}
27... Bc8 {[%clk 0:00:03.5]} 28. Be6 {[%clk 0:00:49.1]} 28... Rfe8 {[%clk
0:00:01.4]} 29. Bxf5+ {[%clk 0:00:47.6]} 1-0

[Event "Late-Titled-Tuesday-Blitz-March-26-2024"]
[Site "Chess.com"]
[Date "2024.03.26"]
[Round "10"]
[White "CarlosjPineror"]
[Black "Mikhail_Bryakin"]
[Result "0-1"]
[WhiteElo "2739"]
[BlackElo "2880"]
[TimeControl "180+1"]
[EndTime "15:53:39 PDT"]
[Termination "Mikhail_Bryakin won by resignation"]

1. e4 {[%clk 0:02:58]} 1... d5 {[%clk 0:02:59.6]} 2. exd5 {[%clk 0:02:57.8]}
2... Qxd5 {[%clk 0:03:00.4]} 3. Nc3 {[%clk 0:02:58.4]} 3... Qe5+ {[%clk
0:03:00.8]} 4. Qe2 {[%clk 0:02:51]} 4... Qxe2+ {[%clk 0:02:58.4]} 5. Bxe2 {[%clk
0:02:51.9]} 5... c6 {[%clk 0:02:56.7]} 6. Nf3 {[%clk 0:02:51.8]} 6... Bf5 {[%clk
0:02:57.4]} 7. d3 {[%clk 0:02:51.6]} 7... e6 {[%clk 0:02:56.7]} 8. O-O {[%clk
0:02:52.3]} 8... h6 {[%clk 0:02:57.2]} 9. Be3 {[%clk 0:02:41.5]} 9... Nf6 {[%clk
0:02:56.4]} 10. h3 {[%clk 0:02:40.4]} 10... Nbd7 {[%clk 0:02:56.4]} 11. Nd4
{[%clk 0:02:35.9]} 11... Bh7 {[%clk 0:02:55.9]} 12. a4 {[%clk 0:02:30.6]} 12...
a5 {[%clk 0:02:53.7]} 13. Nf3 {[%clk 0:02:14.8]} 13... Bd6 {[%clk 0:02:50.4]}
14. Rad1 {[%clk 0:02:10.5]} 14... O-O {[%clk 0:02:44.1]} 15. Ne4 {[%clk
0:02:05.4]} 15... Be7 {[%clk 0:02:39.8]} 16. Nxf6+ {[%clk 0:02:01.5]} 16... Bxf6
{[%clk 0:02:37.7]} 17. c3 {[%clk 0:02:01.2]} 17... Rfc8 {[%clk 0:02:28]} 18. d4
{[%clk 0:01:56.7]} 18... Nb6 {[%clk 0:02:24.1]} 19. Ra1 {[%clk 0:01:50.5]} 19...
Bc2 {[%clk 0:02:23.9]} 20. Bd1 {[%clk 0:01:48.1]} 20... Bd3 {[%clk 0:02:16.9]}
21. Re1 {[%clk 0:01:41.3]} 21... Nc4 {[%clk 0:02:17.5]} 22. Bc1 {[%clk
0:01:36.8]} 22... Rd8 {[%clk 0:02:08.4]} 23. b3 {[%clk 0:01:36.2]} 23... Nb6
{[%clk 0:02:08.7]} 24. Be2 {[%clk 0:01:35.3]} 24... Bxe2 {[%clk 0:02:01.8]} 25.
Rxe2 {[%clk 0:01:36.2]} 25... c5 {[%clk 0:02:02.5]} 26. Be3 {[%clk 0:01:32]}
26... Nd5 {[%clk 0:01:57.1]} 27. Rc1 {[%clk 0:01:01.5]} 27... Rac8 {[%clk
0:01:48.3]} 28. Rd2 {[%clk 0:00:58.8]} 28... c4 {[%clk 0:01:47.5]} 29. Rb2
{[%clk 0:00:56]} 29... b6 {[%clk 0:01:46.6]} 30. Nd2 {[%clk 0:00:53.1]} 30...
cxb3 {[%clk 0:01:38.9]} 31. Rxb3 {[%clk 0:00:54]} 31... e5 {[%clk 0:01:31.3]}
32. dxe5 {[%clk 0:00:50.4]} 32... Bxe5 {[%clk 0:01:24.6]} 33. Nf3 {[%clk
0:00:49.9]} 33... Rxc3 {[%clk 0:01:10.3]} 34. Rbxc3 {[%clk 0:00:44.9]} 34...
Bxc3 {[%clk 0:01:11.2]} 35. Bxb6 {[%clk 0:00:45.2]} 35... Nxb6 {[%clk
0:01:08.8]} 36. Rxc3 {[%clk 0:00:45.2]} 36... Rd5 {[%clk 0:00:59.2]} 37. Ra3
{[%clk 0:00:39.8]} 37... Rc5 {[%clk 0:00:58.2]} 38. Nd2 {[%clk 0:00:22.4]} 38...
Rc2 {[%clk 0:00:52.7]} 39. Kh2 {[%clk 0:00:22.2]} 39... Rxd2 {[%clk 0:00:52.3]}
0-1

[Event "Late-Titled-Tuesday-Blitz-March-26-2024"]
[Site "Chess.com"]
[Date "2024.03.26"]
[Round "10"]
[White "1g60-1"]
[Black "FMYiLiu"]
[Result "0-1"]
[WhiteElo "2390"]
[BlackElo "2509"]
[TimeControl "180+1"]
[EndTime "15:53:42 PDT"]
[Termination "FMYiLiu won by checkmate"]

1. e4 {[%clk 0:03:00.9]} 1... e6 {[%clk 0:03:00.4]} 2. d4 {[%clk 0:03:00.5]}
2... d5 {[%clk 0:03:01]} 3. Nd2 {[%clk 0:03:01.1]} 3... c5 {[%clk 0:03:00.8]} 4.
Ngf3 {[%clk 0:03:01.1]} 4... cxd4 {[%clk 0:03:00.7]} 5. Nxd4 {[%clk 0:03:01.5]}
5... Nf6 {[%clk 0:02:57.8]} 6. e5 {[%clk 0:02:56.4]} 6... Nfd7 {[%clk
0:02:58.1]} 7. f4 {[%clk 0:02:55.5]} 7... Nxe5 {[%clk 0:02:58.3]} 8. N2f3 {[%clk
0:02:48.6]} 8... Nxf3+ {[%clk 0:02:57.1]} 9. Qxf3 {[%clk 0:02:48.9]} 9... Nc6
{[%clk 0:02:57.2]} 10. c3 {[%clk 0:02:44.2]} 10... Nxd4 {[%clk 0:02:52.4]} 11.
cxd4 {[%clk 0:02:45.1]} 11... Bb4+ {[%clk 0:02:52.7]} 12. Kf2 {[%clk 0:02:44.3]}
12... O-O {[%clk 0:02:50.4]} 13. Bd3 {[%clk 0:02:43.8]} 13... Bd7 {[%clk
0:02:47.7]} 14. g4 {[%clk 0:02:40.4]} 14... Qb6 {[%clk 0:02:44.6]} 15. Be3
{[%clk 0:02:38.6]} 15... Be7 {[%clk 0:02:40.2]} 16. Rab1 {[%clk 0:02:31.8]}
16... Bb5 {[%clk 0:02:39.5]} 17. Bc2 {[%clk 0:02:28.5]} 17... Rfc8 {[%clk
0:02:38.9]} 18. Rhc1 {[%clk 0:02:28.3]} 18... Qa6 {[%clk 0:02:38.6]} 19. Bb3
{[%clk 0:01:51]} 19... Bc4 {[%clk 0:02:31.6]} 20. Bxc4 {[%clk 0:01:46.6]} 20...
dxc4 {[%clk 0:02:30.1]} 21. a3 {[%clk 0:01:37.8]} 21... b5 {[%clk 0:02:21.7]}
22. g5 {[%clk 0:01:27.6]} 22... Qc6 {[%clk 0:02:18.5]} 23. Qg4 {[%clk
0:01:24.4]} 23... Qe4 {[%clk 0:02:18.3]} 24. h4 {[%clk 0:01:18]} 24... c3 {[%clk
0:01:40.5]} 25. bxc3 {[%clk 0:01:12.7]} 25... Bxa3 {[%clk 0:01:40.1]} 26. Re1
{[%clk 0:01:02.2]} 26... Rxc3 {[%clk 0:01:38.1]} 27. Rxb5 {[%clk 0:00:56.3]}
27... Rc2+ {[%clk 0:01:33.2]} 28. Re2 {[%clk 0:00:55.6]} 28... Rac8 {[%clk
0:01:32.1]} 29. Bd2 {[%clk 0:00:36.5]} 29... Qxd4+ {[%clk 0:01:28.2]} 30. Be3
{[%clk 0:00:35.1]} 30... Qd3 {[%clk 0:01:22.7]} 31. Rb1 {[%clk 0:00:25.5]} 31...
Rxe2+ {[%clk 0:01:21.5]} 32. Qxe2 {[%clk 0:00:25.8]} 32... Qxb1 {[%clk 0:01:22]}
33. Qa6 {[%clk 0:00:25.1]} 33... Qc2+ {[%clk 0:01:20.1]} 34. Kg3 {[%clk
0:00:24.4]} 34... Qc3 {[%clk 0:01:19]} 35. Kg4 {[%clk 0:00:23.7]} 35... h5+
{[%clk 0:01:13]} 36. gxh6 {[%clk 0:00:21.5]} 36... f5+ {[%clk 0:01:08.1]} 37.
Kh5 {[%clk 0:00:17.8]} 37... Qc6 {[%clk 0:00:52.1]} 38. Qxa3 {[%clk 0:00:15]}
38... Qf3+ {[%clk 0:00:52.2]} 39. Kg6 {[%clk 0:00:14.8]} 39... Qg4# {[%clk
0:00:52.3]} 0-1

[Event "Late-Titled-Tuesday-Blitz-March-26-2024"]
[Site "Chess.com"]
[Date "2024.03.26"]
[Round "10"]
[White "thesupera12"]
[Black "noblerone"]
[Result "1/2-1/2"]
[WhiteElo "2430"]
[BlackElo "2525"]
[TimeControl "180+1"]
[EndTime "15:53:45 PDT"]
[Termination "Game drawn by agreement"]

1. d4 {[%clk 0:02:49.6]} 1... d5 {[%clk 0:03:00.2]} 2. Bg5 {[%clk 0:02:46.3]}
2... h6 {[%clk 0:02:59.9]} 3. Bh4 {[%clk 0:02:46]} 3... c6 {[%clk 0:03:00.4]} 4.
e3 {[%clk 0:02:45.6]} 4... Qb6 {[%clk 0:03:00.6]} 5. Qc1 {[%clk 0:02:45.9]} 5...
Bf5 {[%clk 0:03:00.8]} 6. c4 {[%clk 0:02:45.6]} 6... e6 {[%clk 0:02:57.6]} 7.
Nc3 {[%clk 0:02:44.2]} 7... Nd7 {[%clk 0:02:54.2]} 8. Nf3 {[%clk 0:02:43]} 8...
Ngf6 {[%clk 0:02:54.1]} 9. c5 {[%clk 0:02:42.1]} 9... Qd8 {[%clk 0:02:50.2]} 10.
b4 {[%clk 0:02:38.7]} 10... Be7 {[%clk 0:02:48.4]} 11. a4 {[%clk 0:02:37.9]}
11... Ne4 {[%clk 0:02:45.8]} 12. Bxe7 {[%clk 0:02:36.5]} 12... Qxe7 {[%clk
0:02:46.7]} 13. Nxe4 {[%clk 0:02:35.9]} 13... Bxe4 {[%clk 0:02:42.2]} 14. Be2
{[%clk 0:02:35.4]} 14... O-O {[%clk 0:02:39.4]} 15. O-O {[%clk 0:02:34.9]} 15...
e5 {[%clk 0:02:39.8]} 16. Qb2 {[%clk 0:02:32.2]} 16... Bxf3 {[%clk 0:02:25.2]}
17. Bxf3 {[%clk 0:02:33.1]} 17... exd4 {[%clk 0:02:23.4]} 18. Qxd4 {[%clk
0:02:34]} 18... Ne5 {[%clk 0:02:23.3]} 19. Be2 {[%clk 0:02:30.8]} 19... a6
{[%clk 0:02:17.1]} 20. Rfb1 {[%clk 0:02:27.6]} 20... Nd7 {[%clk 0:02:10.9]} 21.
h3 {[%clk 0:02:24.8]} 21... Rfe8 {[%clk 0:02:07.3]} 22. Rc1 {[%clk 0:02:06.6]}
22... g6 {[%clk 0:01:52.8]} 23. Rab1 {[%clk 0:02:05.8]} 23... Qe5 {[%clk
0:01:47.4]} 24. Qd2 {[%clk 0:01:55]} 24... Nf6 {[%clk 0:01:45.5]} 25. Bd3 {[%clk
0:01:51.3]} 25... Ne4 {[%clk 0:01:40]} 26. Bxe4 {[%clk 0:01:51.3]} 26... Qxe4
{[%clk 0:01:40.9]} 27. Qc2 {[%clk 0:01:48]} 27... Qxc2 {[%clk 0:01:36.8]} 28.
Rxc2 {[%clk 0:01:48.9]} 28... Re4 {[%clk 0:01:37]} 29. Rcb2 {[%clk 0:01:43.5]}
29... Kg7 {[%clk 0:01:35.9]} 30. g3 {[%clk 0:01:31.8]} 30... Rc4 {[%clk
0:01:35.5]} 31. Kg2 {[%clk 0:01:31.7]} 31... Re8 {[%clk 0:01:33.1]} 32. h4
{[%clk 0:01:31.7]} 32... h5 {[%clk 0:01:33.2]} 33. Ra1 {[%clk 0:01:23.3]} 33...
Ree4 {[%clk 0:01:23.4]} 34. b5 {[%clk 0:01:16.2]} 34... axb5 {[%clk 0:01:08.1]}
35. axb5 {[%clk 0:01:15.7]} 35... Rxc5 {[%clk 0:01:06.8]} 36. bxc6 {[%clk
0:01:13.9]} 36... bxc6 {[%clk 0:01:07.7]} 37. Ra7 {[%clk 0:01:13.1]} 37... Re6
{[%clk 0:01:07]} 38. Rc7 {[%clk 0:01:09.3]} 38... Rf6 {[%clk 0:01:05.4]} 39. Rd7
{[%clk 0:01:07]} 39... Rc1 {[%clk 0:01:00.4]} 40. Rc7 {[%clk 0:01:02.2]} 40...
Rd6 {[%clk 0:00:59]} 41. Rbb7 {[%clk 0:00:50.6]} 41... Rf6 {[%clk 0:00:59.1]}
42. Rb2 {[%clk 0:00:50.4]} 42... Rc4 {[%clk 0:00:59.4]} 43. Rd2 {[%clk
0:00:50.2]} 43... Rd6 {[%clk 0:00:55.9]} 44. Rb2 {[%clk 0:00:48.4]} 44... d4
{[%clk 0:00:54.2]} 45. exd4 {[%clk 0:00:47.4]} 45... Rcxd4 {[%clk 0:00:53.5]}
46. Rc2 {[%clk 0:00:44.2]} 46... Rf6 {[%clk 0:00:45.8]} 47. R7xc6 {[%clk
0:00:43.8]} 47... Rxc6 {[%clk 0:00:43.3]} 48. Rxc6 {[%clk 0:00:44.7]} 48... Rd3
{[%clk 0:00:43.8]} 49. Rb6 {[%clk 0:00:45]} 49... Ra3 {[%clk 0:00:43.6]} 50. Rb4
{[%clk 0:00:45.4]} 50... Rc3 {[%clk 0:00:43.5]} 1/2-1/2

[Event "Late-Titled-Tuesday-Blitz-March-26-2024"]
[Site "Chess.com"]
[Date "2024.03.26"]
[Round "10"]
[White "Doublekk14"]
[Black "ahmedkandiliii"]
[Result "0-1"]
[WhiteElo "2411"]
[BlackElo "2531"]
[TimeControl "180+1"]
[EndTime "15:53:48 PDT"]
[Termination "ahmedkandiliii won on time"]

1. c4 {[%clk 0:03:00.9]} 1... Nf6 {[%clk 0:02:58.5]} 2. Nc3 {[%clk 0:03:00]}
2... g6 {[%clk 0:02:58.3]} 3. e3 {[%clk 0:02:59.9]} 3... d5 {[%clk 0:02:58]} 4.
Nf3 {[%clk 0:03:00.8]} 4... Bg7 {[%clk 0:02:56.9]} 5. d4 {[%clk 0:03:00.9]} 5...
O-O {[%clk 0:02:55.6]} 6. Be2 {[%clk 0:02:59.6]} 6... c5 {[%clk 0:02:54.7]} 7.
cxd5 {[%clk 0:02:58.2]} 7... Nxd5 {[%clk 0:02:53]} 8. O-O {[%clk 0:02:59.1]}
8... cxd4 {[%clk 0:02:53]} 9. Nxd4 {[%clk 0:02:54.5]} 9... Nc6 {[%clk
0:02:51.3]} 10. Nxc6 {[%clk 0:02:53.1]} 10... bxc6 {[%clk 0:02:52.2]} 11. Qb3
{[%clk 0:02:44.4]} 11... Be6 {[%clk 0:02:42.9]} 12. Nxd5 {[%clk 0:02:20.1]}
12... cxd5 {[%clk 0:02:40.2]} 13. Qa4 {[%clk 0:02:12.3]} 13... Qb6 {[%clk
0:02:33]} 14. Qa3 {[%clk 0:01:47.6]} 14... Rab8 {[%clk 0:02:27.6]} 15. Qxe7
{[%clk 0:01:42.7]} 15... Rfe8 {[%clk 0:02:17.7]} 16. Qh4 {[%clk 0:01:32.3]}
16... Bf5 {[%clk 0:02:08.6]} 17. a4 {[%clk 0:01:08.4]} 17... Qc5 {[%clk
0:01:55.4]} 18. Bb5 {[%clk 0:00:26.9]} 18... Re4 {[%clk 0:01:48.8]} 19. f4
{[%clk 0:00:15]} 19... d4 {[%clk 0:01:43.8]} 20. exd4 {[%clk 0:00:09]} 20...
Bxd4+ {[%clk 0:01:44.5]} 21. Kh1 {[%clk 0:00:08.8]} 21... Qd5 {[%clk 0:01:33.3]}
22. Ra3 {[%clk 0:00:04.2]} 22... Rxb5 {[%clk 0:01:18.5]} 23. axb5 {[%clk
0:00:03.9]} 23... Re2 {[%clk 0:01:19.2]} 24. Rg3 {[%clk 0:00:03.4]} 24... Be4
{[%clk 0:01:17.9]} 25. Qg5 {[%clk 0:00:02.5]} 25... f5 {[%clk 0:01:06.4]} 26. h4
{[%clk 0:00:02.2]} 26... Bf2 {[%clk 0:00:48.6]} 27. Rc3 {[%clk 0:00:02.3]} 27...
Bc5 {[%clk 0:00:40.3]} 28. b4 {[%clk 0:00:02.4]} 28... Bxg2+ {[%clk 0:00:39.5]}
29. Kh2 {[%clk 0:00:01.9]} 29... Bxf1+ {[%clk 0:00:38.6]} 0-1

[Event "Late-Titled-Tuesday-Blitz-March-26-2024"]
[Site "Chess.com"]
[Date "2024.03.26"]
[Round "10"]
[White "JaackCamel"]
[Black "HanSchut"]
[Result "0-1"]
[WhiteElo "2181"]
[BlackElo "2282"]
[TimeControl "180+1"]
[EndTime "15:53:54 PDT"]
[Termination "HanSchut won by resignation"]

1. d4 {[%clk 0:03:00.9]} 1... Nf6 {[%clk 0:02:59.6]} 2. c4 {[%clk 0:03:00.4]}
2... g6 {[%clk 0:02:58.3]} 3. Nc3 {[%clk 0:03:00]} 3... d5 {[%clk 0:02:57.9]} 4.
cxd5 {[%clk 0:02:59.5]} 4... Nxd5 {[%clk 0:02:58.8]} 5. e4 {[%clk 0:02:58.4]}
5... Nxc3 {[%clk 0:02:59.2]} 6. bxc3 {[%clk 0:02:58.4]} 6... Bg7 {[%clk
0:03:00.1]} 7. Nf3 {[%clk 0:02:58.2]} 7... c5 {[%clk 0:02:59.9]} 8. Be3 {[%clk
0:02:57.3]} 8... Qa5 {[%clk 0:02:59.7]} 9. Qd2 {[%clk 0:02:56.8]} 9... Nc6
{[%clk 0:02:59.3]} 10. Rc1 {[%clk 0:02:56.2]} 10... cxd4 {[%clk 0:02:59.5]} 11.
cxd4 {[%clk 0:02:55.9]} 11... Qxd2+ {[%clk 0:03:00.4]} 12. Kxd2 {[%clk
0:02:55.7]} 12... O-O {[%clk 0:03:01.1]} 13. Bb5 {[%clk 0:02:54.2]} 13... Rd8
{[%clk 0:02:56.4]} 14. Bxc6 {[%clk 0:02:53.6]} 14... bxc6 {[%clk 0:02:57.3]} 15.
Rhd1 {[%clk 0:02:44.2]} 15... e5 {[%clk 0:02:51.3]} 16. Ke1 {[%clk 0:02:20.8]}
16... exd4 {[%clk 0:02:51]} 17. Nxd4 {[%clk 0:02:14.9]} 17... Bb7 {[%clk
0:02:18.1]} 18. Nxc6 {[%clk 0:02:01.8]} 18... Re8 {[%clk 0:02:02.4]} 19. f3
{[%clk 0:01:54.2]} 19... f5 {[%clk 0:02:02.1]} 20. Rd7 {[%clk 0:01:24.9]} 20...
Bxc6 {[%clk 0:01:33.4]} 21. Rxc6 {[%clk 0:01:21.5]} 21... fxe4 {[%clk
0:01:33.6]} 22. Rcc7 {[%clk 0:01:18.7]} 22... Be5 {[%clk 0:01:33.5]} 23. Rb7
{[%clk 0:01:03]} 23... exf3 {[%clk 0:01:30.1]} 24. Kf2 {[%clk 0:00:58.3]} 24...
fxg2 {[%clk 0:01:18]} 25. Bh6 {[%clk 0:00:48.8]} 25... Rab8 {[%clk 0:00:58.2]}
26. Kxg2 {[%clk 0:00:45.9]} 26... Rxb7 {[%clk 0:00:52.8]} 27. Rxb7 {[%clk
0:00:45.8]} 27... a5 {[%clk 0:00:53.3]} 28. Ra7 {[%clk 0:00:44.2]} 28... Bc3
{[%clk 0:00:51.2]} 29. Kf3 {[%clk 0:00:38.6]} 29... Rc8 {[%clk 0:00:30.1]} 30.
Ke4 {[%clk 0:00:36.1]} 30... Rd8 {[%clk 0:00:23.8]} 31. h4 {[%clk 0:00:30.3]}
31... Rd4+ {[%clk 0:00:22.6]} 32. Kf3 {[%clk 0:00:27.7]} 32... Rxh4 {[%clk
0:00:23.2]} 33. Kg3 {[%clk 0:00:20.2]} 33... Rxh6 {[%clk 0:00:22.3]} 0-1